fUST/lending_fUST_20260120
["ID","MTS","AMOUNT","RATE_DAILY","PERIOD"]
[402819584,1768921845892,-500.0,0.00025205,30]
[402819588,1768921845903,-258.54131755,0.00025205,30]
[402819591,1768921845914,-250.0,0.00025205,2]
[402819593,1768921845925,-1189.07618867,0.00025205,2]
[402819595,1768921845936,-500.0,0.00025206,2]
[402819597,1768921845948,-380.32,0.000253,4]
[402819600,1768921845960,-439.903069,0.00025342,2]
[402819602,1768921845971,-500.0,0.00025343,2]
[402819604,1768921845983,-521.0,0.00025378,10]
[402819607,1768921845994,-952.5,0.00025378,10]
[402819609,1768921846005,-349.28,0.000254,7]
[402819611,1768921846016,-373.2,0.000254,7]
[402819613,1768921846028,-7026.69,0.000254,14]
[402819617,1768921846039,-2000.0,0.00025408,7]
[402819620,1768921846051,-900.0,0.00025469,3]
[402819624,1768921846063,-500.0,0.0002548,2]
[402819625,1768921846076,-1000.0,0.000255,2]
[402819626,1768921846088,-1527.53,0.000255,2]
[402819627,1768921846100,-578.8,0.000255,7]
[402819628,1768921846113,-184.31641531,0.00025614,2]
[402819629,1768921846126,-500.0,0.00025617,2]
[402819630,1768921846141,-393.3495617,0.00025644,2]
[402819631,1768921846153,-153.0,0.00025644,2]
[402819632,1768921846166,-154.6331854,0.00025644,2]
[402819634,1768921846176,-7922.51802284,0.00025654,2]
[402819635,1768921846186,-167.89,0.000257,7]
[402819636,1768921846196,-328.81,0.000257,3]
[402819637,1768921846205,-350.0,0.00025753,2]
[402819638,1768921846216,-500.0,0.00025754,2]
[402819639,1768921846228,-2000.0,0.00025754,30]
[402819640,1768921846239,-2000.0,0.00025761,7]
[402819641,1768921846254,-744.0462441,0.000258,30]
[402819642,1768921846266,-2205.4,0.00025864,2]
[402819643,1768921846278,-578.0,0.0002589,7]
[402819644,1768921846288,-500.0,0.00025891,2]
[402819645,1768921846299,-5000.0,0.00025953,6]
[402819647,1768921846309,-5000.0,0.00025953,8]
[402819648,1768921846320,-5000.0,0.00025953,7]
[402819649,1768921846332,-5000.0,0.00025953,7]
[402819650,1768921846343,-5000.0,0.00025953,8]
[402819651,1768921846354,-5000.0,0.00026,15]
[402819652,1768921846366,-19147.29189471,0.00026,10]
[402819653,1768921846376,-530.1538491,0.00026,2]
[402819654,1768921846388,-19900.0,0.00026,2]
[402819655,1768921846399,-161.0,0.00026,5]
[402819656,1768921846410,-1000.0,0.00026,26]
[402819657,1768921846421,-300.0,0.00026,20]
[402819658,1768921846431,-238.0,0.00026,14]
[402819659,1768921846441,-1041.66666667,0.00026,10]
[402819660,1768921846451,-1041.66666667,0.00026,7]
[402819661,1768921846462,-1021.0,0.00026,2]
[402819662,1768921846472,-7530.24,0.00026027,6]
[402819663,1768921846482,-500.0,0.00026028,2]
[402819664,1768921846494,-207.0,0.00026082,19]
[402819665,1768921846504,-274.63,0.000261,6]
[402819666,1768921846515,-39601.47,0.000261,2]
[402819667,1768921846526,-2000.0,0.00026114,7]
[402819668,1768921846536,-194.75577529,0.0002616,2]
[402819669,1768921846547,-500.0,0.00026165,2]
[402819670,1768921846558,-387.39685834,0.000262,60]
[402819671,1768921846569,-450.0,0.00026301,2]
[402819672,1768921846579,-500.0,0.00026302,2]
[402819673,1768921846590,-1500.0,0.00026312,2]
[402819674,1768921846601,-1500.0,0.00026312,2]
[402819675,1768921846611,-1500.0,0.00026312,2]
[402819676,1768921846621,-1500.0,0.00026312,2]
[402819677,1768921846631,-1500.0,0.00026312,2]
[402819678,1768921846642,-1500.0,0.00026312,2]
[402819679,1768921846653,-1500.0,0.00026312,2]
[402819680,1768921846664,-1500.0,0.00026312,2]
[402819681,1768921846674,-1500.0,0.00026312,2]
[402819682,1768921846687,-2096.091235,0.00026312,2]
[402819683,1768921846697,-500.0,0.00026439,2]
[402819684,1768921846709,-2000.0,0.00026468,7]
[402819685,1768921846723,-360.26,0.000265,5]
[402819686,1768921846735,-500.0,0.00026576,2]
[402819687,1768921846746,-500.0,0.0002659,20]
[402819688,1768921846759,-7922.51802284,0.00026593,2]
[402819689,1768921846770,-1527.53,0.000266,2]
[402819690,1768921846781,-578.8,0.000266,7]
[402819691,1768921846793,-349.28,0.000267,7]
[402819692,1768921846804,-373.2,0.000267,7]
[402819693,1768921846815,-7026.69,0.000267,14]
[402819694,1768921846825,-500.0,0.00026713,2]
[402819695,1768921846836,-500.0,0.0002679,5]
[402819696,1768921846846,-2000.0,0.00026821,7]
[402819697,1768921846857,-1747.12086572,0.00026828,2]
[402819698,1768921846868,-550.0,0.00026849,2]
[402819699,1768921846878,-500.0,0.0002685,2]
[402819700,1768921846889,-2572.97,0.00026859,2]
[402819701,1768921846901,-91881.25641803,0.000269,2]
[402819702,1768921846912,-549.91098192,0.0002694,2]
[402819703,1768921846922,-500.0,0.00026987,2]
[402819704,1768921846932,-500.0,0.0002699,5]
[402819705,1768921846943,-216069.09884245,0.00027,7]
[402819706,1768921847105,-1804.0,0.00027,7]
[402819707,1768921847158,-72.34621983,0.00027,7]
[402819708,1768921848212,-200.01750749,0.00027,7]
[402819709,1768921848385,-596.16442264,0.00027,7]
[402819710,1768921848396,-300.0,0.00027,7]
[402819711,1768921848407,-1500.00000002,0.00027,7]
[402819712,1768921848421,-4986.18861053,0.00027,7]
[402819713,1768921848440,-905.0,0.000211,10]
[402819714,1768921848454,-1470.53479193,0.000211,10]
[402819715,1768921848520,500.0,0.00027397,120]
[402819717,1768921885523,-300.0,9.079e-05,2]
[402819718,1768921886889,-200.0,9.079e-05,2]
[402819719,1768921886911,-100.0,9.079e-05,2]
[402819720,1768921973461,500.0,0.00027397,120]
[402819721,1768921975332,500.0,0.00027397,120]
[402819722,1768921983226,500.0,0.00027397,120]
[402819723,1768921985257,500.0,0.00027397,120]
[402819724,1768921988109,500.0,0.00027397,120]
[402819725,1768921988341,500.0,0.00027397,120]
[402819726,1768921988605,500.0,0.00027397,120]
[402819727,1768921988835,500.0,0.00027397,120]
[402819728,1768921989068,500.0,0.00027397,120]
[402819729,1768921989322,500.0,0.00027397,120]
[402819730,1768921989543,500.0,0.00027397,120]
[402819731,1768921989785,500.0,0.00027397,120]
[402819732,1768921990174,500.0,0.00027397,120]
[402819733,1768921990441,500.0,0.00027397,120]
[402819734,1768921990690,500.0,0.00027397,120]
[402819735,1768921990960,500.0,0.00027397,120]
[402819736,1768921991203,500.0,0.00027397,120]
[402819737,1768921991557,551.84,0.00027397,120]
[402819738,1768921993296,320.18987423,0.00027397,120]
[402819739,1768922027163,499.99999997,0.00027397,120]
[402819740,1768922030913,500.0,0.00027397,120]
[402819741,1768922031336,500.0,0.00027397,120]
[402819742,1768922031574,418.23,0.00027397,120]
[402819743,1768922040218,5000.0,9e-05,10]
[402819744,1768922040559,500.0,0.00027397,120]
[402819745,1768922041144,468.77,0.00027397,120]
[402819746,1768922043015,500.0,0.00027397,120]
[402819747,1768922044759,434.75713213,0.00027397,120]
[402819748,1768922048141,500.0,0.00027397,120]
[402819749,1768922048404,500.0,0.00027397,120]
[402819750,1768922048587,5000.0,9e-05,10]
[402819751,1768922048647,193.14,0.00027397,120]
[402819752,1768922053741,500.0,0.00027397,120]
[402819753,1768922053966,500.0,0.00027397,120]
[402819754,1768922054201,500.0,0.00027397,120]
[402819755,1768922054437,619.68,0.00027397,120]
[402819757,1768922064413,5000.0,9e-05,10]
[402819759,1768922073031,5000.0,9e-05,10]
[402819760,1768922082189,500.0,0.00027397,120]
[402819761,1768922082425,158.65,0.00027397,120]
[402819762,1768922086052,501.77155884,0.00027397,120]
[402819763,1768922089606,4476.06341449,9e-05,10]
[402819764,1768922276751,500.0,0.00027397,120]
[402819765,1768922289125,164.02952524,0.00027397,120]
[402819766,1768922321630,500.0,0.00027397,120]
[402819767,1768922322408,5000.0,8.799e-05,2]
[402819770,1768922346332,5000.0,8.799e-05,2]
[402819771,1768922351519,500.0,0.00027397,120]
[402819772,1768922351768,502.5,0.00027397,120]
[402819773,1768922359577,500.0,0.00027397,120]
[402819774,1768922363105,500.0,0.00027397,120]
[402819775,1768922363334,416.54,0.00027397,120]
[402819776,1768922364439,500.0,0.00027397,120]
[402819777,1768922367900,500.0,0.00027397,120]
[402819778,1768922370718,5000.0,8.799e-05,2]
[402819779,1768922393322,0.01,8.799e-05,2]
[402819780,1768922393350,4999.99,8.799e-05,2]
[402819781,1768922416370,5000.0,8.799e-05,2]
[402819782,1768922439529,0.02,8.799e-05,2]
[402819783,1768922439553,4999.98,8.799e-05,2]
[402819784,1768922462526,5000.0,8.799e-05,2]
[402819785,1768922477704,500.0,0.00027397,120]
[402819786,1768922478174,500.0,0.00027397,120]
[402819787,1768922478925,0.03,8.799e-05,2]
[402819788,1768922478950,4999.97,8.799e-05,2]
[402819789,1768922479189,500.0,0.00027397,120]
[402819790,1768922479734,500.0,0.00027397,120]
[402819791,1768922480205,500.0,0.00027397,120]
[402819792,1768922480781,500.0,0.00027397,120]
[402819793,1768922481332,258.54131755,0.00027397,120]
[402819794,1768922487411,4638.66918333,8.799e-05,2]
[402819795,1768922503140,361.37081667,8.799e-05,2]
[402819796,1768922503164,4638.62918333,8.799e-05,2]
[402819797,1768922529415,5000.0,8.799e-05,2]
[402819798,1768922553237,5000.0,8.799e-05,2]
[402819800,1768922577361,5000.0,8.799e-05,2]
[402819805,1768922600197,0.01,8.799e-05,2]
[402819806,1768922600221,4999.99,8.799e-05,2]
[402819807,1768922624515,5000.0,8.799e-05,2]
[402819808,1768922647814,0.02,8.799e-05,2]
[402819809,1768922647838,4999.98,8.799e-05,2]
[402819810,1768922671603,5000.0,8.799e-05,2]
[402819812,1768922694514,0.03,8.799e-05,2]
[402819813,1768922694535,4999.97,8.799e-05,2]
[402819814,1768922719449,5000.0,8.799e-05,2]
[402819815,1768922745264,0.04,8.799e-05,2]
[402819816,1768922745290,4999.96,8.799e-05,2]
[402819817,1768922768262,5000.0,8.799e-05,2]
[402819818,1768922795275,0.05,8.799e-05,2]
[402819819,1768922795298,4999.95,8.799e-05,2]
[402819820,1768922806161,500.0,0.00027397,120]
[402819821,1768922810582,516.81700174,0.00027397,120]
[402819823,1768922820329,5000.0,8.799e-05,2]
[402819825,1768922843721,0.06,8.799e-05,2]
[402819826,1768922843746,4999.94,8.799e-05,2]
[402819827,1768922847789,434.12,5.948e-05,2]
[402819828,1768922848214,868.24,6.231e-05,2]
[402819829,1768922848676,1302.37,6.514e-05,2]
[402819830,1768922849112,1736.49,6.797e-05,2]
[402819831,1768922850050,658.85,7.08e-05,2]
[402819832,1768922850079,1511.76,7.08e-05,2]
[402819833,1768922850492,2604.73,7.364e-05,2]
[402819834,1768922850952,3038.85,7.647e-05,2]
[402819835,1768922851390,2844.67,7.93e-05,2]
[402819836,1768922851417,628.31,7.93e-05,2]
[402819837,1768922851827,3907.1,8.213e-05,2]
[402819838,1768922852286,4341.22,8.496e-05,2]
[402819839,1768922866910,5000.0,8.799e-05,2]
[402819840,1768922891811,5000.0,8.799e-05,2]
[402819842,1768922905873,0.01,5e-05,2]
[402819843,1768922905898,10000.01,5e-05,2]
[402819844,1768922905922,20.25231659,5e-05,2]
[402819846,1768922914859,5000.0,8.799e-05,2]
[402819849,1768922924765,339.8,0.00027397,120]
[402819850,1768922928642,260.47,6.261e-05,2]
[402819851,1768922929087,390.71,6.546e-05,2]
[402819852,1768922929516,520.95,6.83e-05,2]
[402819853,1768922930463,651.18,7.115e-05,2]
[402819854,1768922930899,781.42,7.4e-05,2]
[402819855,1768922931355,911.66,7.684e-05,2]
[402819856,1768922932291,1041.89,7.969e-05,2]
[402819857,1768922933240,421.47768341,8.254e-05,2]
[402819858,1768922933269,750.65231659,8.254e-05,2]
[402819859,1768922933901,1302.37,8.538e-05,2]
[402819860,1768922938707,5000.0,8.799e-05,2]
[402819861,1768922938992,500.0,0.00027397,120]
[402819862,1768922962917,2946.98768341,8.799e-05,2]
[402819863,1768922962942,2053.01231659,8.799e-05,2]
[402819864,1768922971355,5000.0,0.000273,120]
[402819865,1768922985919,5000.0,8.799e-05,2]
[402819866,1768923014264,2946.99768341,8.79e-05,2]
[402819867,1768923014288,9085.00231659,8.79e-05,2]
[402819868,1768923017753,151.0,8.799e-05,2]
[402819870,1768923018990,219.57,6.471e-05,2]
[402819871,1768923019447,329.35,6.765e-05,2]
[402819872,1768923019886,215.08768341,7.059e-05,2]
[402819873,1768923019916,224.04231659,7.059e-05,2]
[402819874,1768923020323,548.92,7.353e-05,2]
[402819875,1768923020787,658.7,7.647e-05,2]
[402819876,1768923028703,768.48,7.942e-05,2]
[402819877,1768923029155,878.27,8.236e-05,2]
[402819878,1768923029608,988.05,8.53e-05,2]
[402819928,1768923032559,-1097.83,8.824e-05,2]
[402819929,1768923032569,-5000.0,8.899e-05,2]
[402819930,1768923032579,-546.0,8.988e-05,2]
[402819932,1768923032588,-196.00112079,8.989e-05,2]
[402819934,1768923032598,-1000.0,9.079e-05,2]
[402819935,1768923032607,-1000.0,9.079e-05,2]
[402819936,1768923032616,-1000.0,0.0001,2]
[402819937,1768923032626,-231.28132254,0.00010989,2]
[402819938,1768923032635,-217.7516972,0.00012569,2]
[402819939,1768923032645,-266.56152428,0.00012989,2]
[402819940,1768923032654,-9899.74019503,0.0001307,2]
[402819941,1768923032663,-500.0,0.00013273,2]
[402819942,1768923032673,-5213.87027535,0.00013273,2]
[402819943,1768923032682,-1041.66666667,0.00013575,2]
[402819944,1768923032692,-1000.0,0.00013821,2]
[402819945,1768923032702,-500.0,0.00014367,2]
[402819946,1768923032711,-500.0,0.00014367,2]
[402819947,1768923032720,-500.0,0.00014367,2]
[402819948,1768923032729,-500.0,0.00014367,2]
[402819949,1768923032742,-500.0,0.00014367,2]
[402819950,1768923032752,-500.0,0.00014367,2]
[402819951,1768923032762,-500.0,0.00014367,2]
[402819952,1768923032772,-500.0,0.00014367,2]
[402819953,1768923032782,-239.54925363,0.00014367,2]
[402819954,1768923032792,-500.0,0.00014367,2]
[402819955,1768923032802,-500.0,0.00014367,2]
[402819956,1768923032812,-393.85699465,0.00014367,2]
[402819957,1768923032821,-500.0,0.00014367,2]
[402819958,1768923032831,-473.1892015,0.00014367,2]
[402819959,1768923032840,-643.36449172,0.00014367,2]
[402819960,1768923032850,-500.0,0.00014367,2]
[402819961,1768923032860,-500.0,0.00014367,2]
[402819962,1768923032870,-337.75027003,0.00014367,2]
[402819963,1768923032879,-500.0,0.00014367,2]
[402819964,1768923032889,-500.0,0.00014367,2]
[402819965,1768923032899,-500.0,0.00014367,2]
[402819966,1768923032909,-500.0,0.00014367,2]
[402819967,1768923032918,-500.0,0.00014367,2]
[402819968,1768923032928,-500.0,0.00014367,2]
[402819969,1768923032938,-500.0,0.00014367,2]
[402819970,1768923032948,-500.0,0.00014367,2]
[402819971,1768923032959,-500.0,0.00014367,2]
[402819972,1768923032968,-500.0,0.00014367,2]
[402819973,1768923032977,-500.0,0.00014367,2]
[402819974,1768923032987,-500.0,0.00014367,2]
[402819975,1768923032999,-500.0,0.00014367,2]
[402819976,1768923033009,-500.0,0.00014367,2]
[402819977,1768923033019,-500.0,0.00014367,2]
[402819978,1768923033029,-500.0,0.00014367,2]
[402819979,1768923033041,-500.0,0.00014367,2]
[402819980,1768923033049,-500.0,0.00014367,2]
[402819981,1768923033059,-233.775027,0.00014367,2]
[402819982,1768923033069,-500.0,0.00014367,2]
[402819983,1768923033080,-163.68768905,0.00014367,2]
[402819984,1768923033090,-500.0,0.00014367,2]
[402819985,1768923033100,-500.0,0.00014367,2]
[402819986,1768923033110,-1500.0,0.00014368,2]
[402819987,1768923033126,-418.35303483,0.0001437,2]
[402819988,1768923033136,-596.62328125,0.0001437,2]
[402819989,1768923033145,-448.52222972,0.0001437,2]
[402819990,1768923033155,-8964.69750542,0.00014371,2]
[402819991,1768923033165,-5000.0,0.00014371,2]
[402819992,1768923033175,-2902.18899575,0.00014371,2]
[402819993,1768923033187,-302.0,0.00014371,2]
[402820016,1768923038738,-1795.81100425,0.00014371,2]
[402820018,1768923038750,-5000.0,0.00014371,2]
[402820020,1768923038759,-5000.0,0.00014371,2]
[402820021,1768923038770,-166.8945979,0.000149,2]
[402820022,1768923038780,-207.29716008,0.00014916,2]
[402820023,1768923038789,-301.84172602,0.00014989,2]
[402820024,1768923038799,-151.0,0.00014991,2]
[402820025,1768923038809,-151.0,0.00014991,2]
[402820026,1768923038819,-151.0,0.00014991,2]
[402820027,1768923038828,-151.0,0.00014991,2]
[402820028,1768923038838,-151.0,0.00014991,2]
[402820029,1768923038849,-151.0,0.00014991,2]
[402820030,1768923038860,-151.0,0.00014991,2]
[402820031,1768923038870,-151.0,0.00014991,2]
[402820032,1768923038880,-151.0,0.00014991,2]
[402820033,1768923038890,-151.0,0.00014991,2]
[402820034,1768923038901,-151.0,0.00014991,2]
[402820035,1768923038911,-151.0,0.00014991,2]
[402820036,1768923038921,-151.0,0.00014991,2]
[402820037,1768923038931,-151.0,0.00014991,2]
[402820038,1768923038942,-151.0,0.00014991,2]
[402820039,1768923038952,-151.0,0.00014991,2]
[402820040,1768923038962,-5000.0,0.00014999,2]
[402820041,1768923038973,-2531.38712028,0.00015,2]
[402820042,1768923038983,-1019.69357062,0.00015,2]
[402820043,1768923038992,-542.07191309,0.00015,2]
[402820044,1768923039006,-90000.0,0.00015,2]
[402820045,1768923039016,-15372.70144397,0.00015,2]
[402820046,1768923039026,-1373.31469663,0.00015,3]
[402820047,1768923039037,-1000.0,0.00015,2]
[402820048,1768923039051,-10000.0,0.000155,2]
[402820049,1768923039062,-1505.98899495,0.00016,2]
[402820050,1768923039072,-245.0,0.00016247,3]
[402820051,1768923039083,-267.59638846,0.00016438,2]
[402820052,1768923039093,-417.0,0.00016783,2]
[402820053,1768923039103,-178.0,0.00016783,2]
[402820054,1768923039113,-337.12192777,0.00016989,2]
[402820055,1768923039125,-1000.0,0.00017,2]
[402820056,1768923039135,-22186.0,0.000175,2]
[402820057,1768923039146,-162.0,0.0001789,3]
[402820058,1768923039156,-5000.0,0.00017998,2]
[402820059,1768923039166,-303.10001603,0.000189,2]
[402820060,1768923039177,-303.10001603,0.000189,2]
[402820061,1768923039186,-372.40212951,0.00018989,2]
[402820062,1768923039196,-17980.14995828,0.00019,2]
[402820063,1768923039206,-2603.49,0.00019,2]
[402820064,1768923039216,-303.10001603,0.00019089,2]
[402820065,1768923039226,-303.10001603,0.00019089,2]
[402820066,1768923039236,-351.0,0.00019109,2]
[402820067,1768923039248,-846.0132,0.00019178,2]
[402820069,1768923039258,-846.0132,0.00019178,2]
[402820070,1768923039267,-1950.0333168,0.00019205,5]
[402820071,1768923039276,-417.0,0.00019273,2]
[402820072,1768923039286,-303.10001603,0.00019278,2]
[402820073,1768923039295,-303.10001603,0.00019278,2]
[402820075,1768923039305,-167.89,0.000193,2]
[402820076,1768923039315,-303.10001603,0.00019467,2]
[402820077,1768923039325,-303.10001603,0.00019467,2]
[402820078,1768923039335,-539.0,0.00019496,2]
[402820079,1768923039345,-5000.0,0.00019498,2]
[402820080,1768923039355,-163.0,0.00019534,3]
[402820081,1768923039366,-846.0132,0.00019589,3]
[402820082,1768923039376,-707.6068,0.00019589,3]
[402820083,1768923039386,-303.10001603,0.00019656,2]
[402820084,1768923039396,-303.10001603,0.00019656,2]
[402820085,1768923039405,-349.28,0.000197,2]
[402820086,1768923039415,-373.2,0.000197,2]
[402820087,1768923039424,-500.0,0.00019716,2]
[402820088,1768923039434,-500.0,0.00019716,2]
[402820089,1768923039444,-500.0,0.00019716,2]
[402820090,1768923039454,-500.0,0.00019716,2]
[402820091,1768923039463,-417.0,0.00019783,2]
[402820092,1768923039695,-178.0,0.00019783,2]
[402820093,1768923039707,-454.65002405,0.00019845,4]
[402820094,1768923039720,-454.65002405,0.00019845,4]
[402820095,1768923039731,-500.0,0.00019853,2]
[402820096,1768923039741,-500.0,0.00019853,2]
[402820097,1768923039753,-500.0,0.00019853,2]
[402820098,1768923039763,-613.67182902,0.00019853,2]
[402820099,1768923039773,-168.58586083,0.0001999,2]
[402820100,1768923039783,-500.0,0.0001999,2]
[402820101,1768923039793,-500.0,0.0001999,2]
[402820102,1768923039802,-507.6079,0.0001999,2]
[402820103,1768923039812,-507.6079,0.0001999,3]
[402820104,1768923039823,-507.6079,0.0001999,2]
[402820105,1768923039832,-507.6079,0.0001999,2]
[402820106,1768923039841,-507.6079,0.0001999,2]
[402820107,1768923039852,-507.6079,0.0001999,2]
[402820108,1768923039862,-507.6079,0.0001999,2]
[402820109,1768923039875,-507.6079,0.0001999,2]
[402820110,1768923039885,-507.6079,0.0001999,2]
[402820111,1768923039895,-507.6079,0.0001999,2]
[402820112,1768923039912,-507.6079,0.0001999,3]
[402820113,1768923039922,-200.0,0.0001999,2]
[402820114,1768923039933,-100000.0,0.0001999,2]
[402820115,1768923039943,-184.31641531,0.0002,2]
[402820116,1768923039953,-300.0,0.0002,2]
[402820117,1768923039963,-7880.0,0.0002,2]
[402820118,1768923039974,-882.45,0.0002,2]
[402820119,1768923039984,-507.6079,0.0002,4]
[402820120,1768923039998,-250.0,0.0002,10]
[402820121,1768923040009,-1000.0,0.0002,2]
[402820122,1768923040020,-13929.44665599,0.0002,2]
[402820123,1768923040030,-14710.76439563,0.0002,2]
[402820124,1768923040043,-254.12852691,0.0002,21]
[402820126,1768923040053,-40735.78374581,0.0002,2]
[402820127,1768923040064,-371.84503384,0.0002,2]
[402820129,1768923040075,-3294.07435267,0.0002,2]
[402820130,1768923040087,-980.1717281,0.0002,2]
[402820131,1768923040097,-23000.0,0.0002,2]
[402820132,1768923040108,-202.86373622,0.0002,2]
[402820133,1768923040119,-2533.03819427,0.0002,30]
[402820134,1768923040129,-504.60836012,0.0002,2]
[402820135,1768923040138,-1000.0,0.0002,5]
[402820136,1768923040148,-1000.0,0.0002,2]
[402820137,1768923040157,-454.65002405,0.00020034,4]
[402820138,1768923040166,-454.65002405,0.00020034,4]
[402820139,1768923040176,-250.0,0.000201,10]
[402820140,1768923040186,-500.0,0.00020127,2]
[402820141,1768923040196,-500.0,0.00020127,2]
[402820142,1768923040206,-657.65,0.00020147,3]
[402820143,1768923040216,-151.0,0.000202,3]
[402820144,1768923040226,-250.0,0.000202,10]
[402820145,1768923040236,-454.65002405,0.00020223,4]
[402820146,1768923040250,-454.65002405,0.00020223,4]
[402820147,1768923040260,-500.0,0.00020264,2]
[402820148,1768923040270,-500.0,0.00020264,2]
[402820149,1768923040280,-151.0,0.00020274,2]
[402820150,1768923040290,-151.0,0.000203,4]
[402820151,1768923040299,-151.0,0.000203,3]
[402820152,1768923040309,-250.0,0.000203,10]
[402820153,1768923040319,-166.8945979,0.00020349,2]
[402820154,1768923040329,-151.0,0.000204,3]
[402820155,1768923040339,-151.0,0.000204,4]
[402820156,1768923040350,-250.0,0.000204,10]
[402820158,1768923040359,-250.0,0.00020401,2]
[402820159,1768923040369,-500.0,0.00020401,2]
[402820160,1768923040379,-512.56673437,0.00020401,2]
[402820161,1768923040389,-454.65002405,0.00020412,4]
[402820162,1768923040399,-454.65002405,0.00020412,4]
[402820163,1768923040410,-600.0,0.00020414,2]
[402820164,1768923040420,-507.6079,0.00020446,2]
[402820165,1768923040429,-507.6079,0.00020446,3]
[402820166,1768923040443,-507.6079,0.00020446,4]
[402820167,1768923040453,-507.6079,0.00020446,2]
[402820168,1768923040462,-507.6079,0.00020446,3]
[402820169,1768923040472,-507.6079,0.00020446,4]
[402820170,1768923040482,-372.67,0.00020446,2]
[402820171,1768923040492,-1000000.0,0.00020447,2]
[402820172,1768923040505,-600.0,0.00020449,2]
[402820174,1768923040514,-507.6079,0.00020452,2]
[402820175,1768923040523,-507.6079,0.00020452,3]
[402820176,1768923040533,-507.6079,0.00020452,4]
[402820177,1768923040543,-500.0,0.00020483,2]
[402820178,1768923040553,-600.0,0.0002049,2]
[402820179,1768923040562,-39601.47,0.000205,2]
[402820181,1768923040572,-250.0,0.000205,10]
[402820183,1768923040582,-7026.69,0.000205,2]
[402820184,1768923040591,-600.0,0.00020524,2]
[402820185,1768923040600,-500.0,0.00020538,2]
[402820186,1768923040609,-7530.24,0.00020547,2]
[402820187,1768923040619,-1500.0,0.00020554,2]
[402820189,1768923040628,-600.0,0.00020574,2]
[402820190,1768923040638,-250.0,0.000206,10]
[402820191,1768923040647,-454.65002405,0.00020601,4]
[402820192,1768923040657,-454.65002405,0.00020601,4]
[402820193,1768923040667,-600.0,0.00020605,2]
[402820194,1768923040677,-265.085096,0.00020605,7]
[402820195,1768923040687,-600.0,0.00020607,2]
[402820196,1768923040696,-1390.30550397,0.0002061,2]
[402820197,1768923040706,-600.0,0.00020638,2]
[402820198,1768923040715,-500.0,0.0002067,2]
[402820199,1768923040725,-462.76843359,0.00020675,2]
[402820200,1768923040734,-600.0,0.00020686,2]
[402820201,1768923040746,-1500.0,0.00020687,2]
[402820202,1768923040756,-1500.0,0.00020695,2]
[402820203,1768923040765,-250.0,0.000207,10]
[402820204,1768923040777,-167.89,0.000207,2]
[402820206,1768923040786,-1500.0,0.00020707,2]
[402820207,1768923040796,-600.0,0.00020733,2]
[402820208,1768923040806,-600.0,0.00020773,2]
[402820209,1768923040815,-250.0,0.000208,10]
[402820210,1768923040824,-600.0,0.00020838,2]
[402820211,1768923040833,-500.0,0.00020843,2]
[402820212,1768923040843,-600.0,0.00020868,2]
[402820213,1768923040852,-600.0,0.00020872,2]